{"text_format":"3","workbook":"xlsx","n_sheets":3,"sheets":["Geschichten","Übermittlungen","Publikationen"],"not_rendered":{"images":1,"defined_names":2},"read":"whole","date_system":"1900"}

{"sheet":"Geschichten","index":0,"n_rows":10,"n_cols":7,"rows_kept":10}
[{"$nulls":6}," "]
[]
[]
[null,"Titel","Status","Wortzahl","Textabschnitt","Zusammenfassung"]
[null,"Call by Nightfall","Abgeschlossen",{"v":5710,"d":"5,710"},"Kurzgeschichte","Eine leicht spannende Fiktion über einen heimlichen Detektiv."]
[null,"The Blue Wallpaper","Abgeschlossen",{"v":4525,"d":"4,525"},"Kurzgeschichte","Inspirierende Geschichte des Hausdesigns."]
[null,"Love After Love","Abgeschlossen",438,"Blogbeitrag","Eine Liebesgeschichte über eine zweite Chance."]
[null,"The Most Dangerous Suit","In Bearbeitung",550,"Werbung","Werbeartikel für einen Shirtdesigner."]
[null,"The Legendary Mission","Abgeschlossen",520,"Blogbeitrag","Kurze Geschichte über eine Weltraummission."]
[null,"Legacy Quarter","Abgeschlossen",290,"Blogbeitrag","Sportartikel in Endrundenspielen."]

{"sheet":"Übermittlungen","index":1,"n_rows":11,"n_cols":8,"rows_kept":11}
[{"$nulls":7}," "]
[]
[]
[null,"Datum \nEingereicht","Titel der Geschichte","Publikationsname","Status","Datum \nVeröffentlicht","Zahlung \nErhalten"]
[null,{"$f":"TODAY()-21","v":"2019-09-27"},"Call by Nightfall","Young at Heart Magazine","Abgelehnt"]
[null,{"$f":"TODAY()-9","v":"2019-10-09"},"The Blue Wallpaper","Young at Heart Magazine","Akzeptiert",{"$f":"TODAY()-4","v":"2019-10-14"},{"v":300,"d":"300.00 €"}]
[null,{"$f":"TODAY()-9","v":"2019-10-09"},"The Blue Wallpaper","Digital Grounds","Akzeptiert",{"$f":"TODAY()-2","v":"2019-10-16"},{"v":350,"d":"350.00 €"}]
[null,{"$f":"TODAY()-7","v":"2019-10-11"},"Love After Love","Herunterladen","Eingereicht"]
[null,{"$f":"TODAY()-6","v":"2019-10-12"},"The Legendary Mission","Digital Grounds","Akzeptiert",{"$f":"TODAY()-4","v":"2019-10-14"},{"v":150,"d":"150.00 €"}]
[null,{"$f":"TODAY()-6","v":"2019-10-12"},"Legacy Quarter","Herunterladen","Akzeptiert",{"$f":"TODAY()-3","v":"2019-10-15"},{"v":100,"d":"100.00 €"}]
[null,{"$f":"TODAY()-6","v":"2019-10-12"},"Legacy Quarter","Digital Grounds","Eingereicht"]

{"sheet":"Publikationen","index":2,"n_rows":7,"n_cols":8,"rows_kept":7}
[{"$nulls":7}," "]
[]
[]
[null,"Name","Art","Termine","Summe \nÜbermittlungen","Summe\nAkzeptiert","Summe \nEinnahmen"]
[null,"Digital Grounds","Sonstiges","Zwei Wochen nach Anfrage",{"$f":"COUNTIF(Tabelle_Übermittlungen[Publikationsname],Tabelle_Publikationen[[#This Row],[Name]])","v":3},{"$f":"COUNTIFS(Tabelle_Übermittlungen[Publikationsname],Tabelle_Publikationen[[#This Row],[Name]],Tabelle_Übermittlungen[Status],\"Akzeptiert\")","v":2},{"$f":"SUMIF(Tabelle_Übermittlungen[Publikationsname],Tabelle_Publikationen[[#This Row],[Name]],Tabelle_Übermittlungen[Zahlung \nErhalten])","v":{"v":500,"d":"500.00 €"}}]
[null,"Young at Heart Magazine","SFWA","Jeden 3. im Monat",{"$f":"COUNTIF(Tabelle_Übermittlungen[Publikationsname],Tabelle_Publikationen[[#This Row],[Name]])","v":2},{"$f":"COUNTIFS(Tabelle_Übermittlungen[Publikationsname],Tabelle_Publikationen[[#This Row],[Name]],Tabelle_Übermittlungen[Status],\"Akzeptiert\")","v":1},{"$f":"SUMIF(Tabelle_Übermittlungen[Publikationsname],Tabelle_Publikationen[[#This Row],[Name]],Tabelle_Übermittlungen[Zahlung \nErhalten])","v":{"v":300,"d":"300.00 €"}}]
[null,"Herunterladen","SFWA","Jeden Montag",{"$f":"COUNTIF(Tabelle_Übermittlungen[Publikationsname],Tabelle_Publikationen[[#This Row],[Name]])","v":2},{"$f":"COUNTIFS(Tabelle_Übermittlungen[Publikationsname],Tabelle_Publikationen[[#This Row],[Name]],Tabelle_Übermittlungen[Status],\"Akzeptiert\")","v":1},{"$f":"SUMIF(Tabelle_Übermittlungen[Publikationsname],Tabelle_Publikationen[[#This Row],[Name]],Tabelle_Übermittlungen[Zahlung \nErhalten])","v":{"v":100,"d":"100.00 €"}}]